bitfinex/quotes_ETHUSD_20240618
["timestamp","ask_amount","ask_price","bid_price","bid_amount"]
[1718719202588,0.07360939,3397.1,3395.7,0.05888751]
[1718719202864,2.94395,3396.8,3395.6,2.837]
[1718719203068,0.07361242,3396.7,3395.6,2.837]
[1718719203580,0.07361242,3396.7,3395.7,3.05888994]
[1718719203735,0.07360938,3397.2,3395.8,0.05888751]
[1718719203934,2.94369,3397.1,3395.8,0.05888751]
[1718719204183,0.07360938,3397.0,3395.8,0.05888751]
[1718719204536,0.07360938,3397.0,3395.1,0.29246242]
[1718719204845,0.07360938,3397.0,3395.4,2.837]
[1718719205066,2.94395,3396.8,3395.4,3.14994624]
[1718719205243,0.07361309,3396.7,3395.4,3.14994624]
[1718719205448,2.9443,3396.4,3395.0,6.50332531]
[1718719205753,0.07362135,3396.3,3395.1,3.0]
[1718719206076,3.01812135,3396.2,3395.1,3.0]
[1718719206235,3.01812135,3396.2,3395.0,0.28852531]
[1718719206236,2.94457,3396.1,3395.0,0.28852531]
[1718719206438,0.0736283,3396.0,3394.5,4.769]
[1718719206641,4.481,3397.3,3395.4,1.769]
[1718719206945,3.2129,3397.4,3395.9,2.837]
[1718719206946,0.07360104,3397.2,3395.9,2.837]
[1718719207148,2.94326,3397.6,3395.9,2.837]
[1718719207149,3.0285,3397.9,3396.0,5.11158036]
[1718719207350,0.07359321,3397.8,3396.0,5.0527]
[1718719207569,2.94326,3397.6,3396.1,0.81845]
[1718719207736,3.0285,3397.9,3396.4,2.837]
[1718719207938,3.0285,3397.9,3396.1,2.58745]
[1718719207939,7.6093,3398.5,3396.9,2.837]
[1718719208161,1.74467941,3398.4,3397.0,3.89256353]
[1718719208343,2.94187,3399.2,3397.0,3.89256353]
[1718719208344,4.481,3399.4,3397.9,2.837]
[1718719208576,0.07355961,3399.3,3398.0,3.60884749]
[1718719208871,0.07355235,3399.4,3398.1,0.82148475]
[1718719209075,0.07355619,3399.4,3398.1,0.82148475]
[1718719209298,0.07355619,3399.4,3398.0,3.55]
[1718719209299,0.07355619,3399.4,3398.4,2.837]
[1718719209584,3.12994771,3400.2,3398.5,5.37783817]
[1718719209941,3.12994771,3400.2,3398.6,0.05883222]
[1718719210136,3.12994771,3400.2,3398.9,4.606]
[1718719210137,0.31299477,3400.1,3398.9,4.606]
[1718719210334,3.0564,3400.8,3399.0,3.05882581]
[1718719210335,0.07353226,3400.7,3399.0,3.05882581]
[1718719210541,2.94092,3400.3,3399.0,3.0]
[1718719210746,0.07354302,3400.2,3398.5,0.55]
[1718719210971,0.07354302,3400.2,3398.0,0.28930715]
[1718719210972,2.94167,3399.5,3398.0,0.28930715]
[1718719211223,2.9416,3399.6,3397.6,3.0]
[1718719211224,0.07356258,3399.4,3397.6,3.0]
[1718719211340,3.235122,3400.2,3398.4,2.837]
[1718719211540,0.07354366,3400.1,3398.5,3.60883493]
[1718719211738,0.07354366,3400.1,3398.2,3.0]
[1718719211977,2.94146,3399.7,3398.2,3.59099]
[1718719212179,2.94146,3399.7,3397.5,0.60922434]
[1718719212180,3.1036,3399.4,3397.6,2.837]
[1718719212512,3.1036,3399.4,3397.5,0.29515441]
[1718719212513,6.04407,3399.0,3397.5,0.29515441]
[1718719212781,2.94238,3398.6,3397.1,2.837]
[1718719212999,2.94274,3398.2,3397.1,2.837]
[1718719213160,2.9429,3398.0,3397.1,0.2916027]
[1718719213474,2.9429,3398.0,3396.6,2.837]
[1718719213475,0.07358657,3397.9,3396.6,2.837]
[1718719213693,0.07358657,3397.9,3396.3,3.0615]
[1718719213840,6.04517,3397.7,3395.7,1.769]
[1718719214040,2.8951,3397.2,3395.6,2.837]
[1718719214240,0.07361157,3397.1,3395.6,2.837]
[1718719214488,0.59122316,3397.0,3395.6,3.7251211]
[1718719214701,0.07361156,3396.9,3395.6,0.2935111]
[1718719214841,2.94395,3396.8,3395.1,2.837]
[1718719215048,0.07361764,3396.7,3395.1,2.837]
[1718719215249,4.481,3397.6,3396.1,2.837]
[1718719215477,0.70101945,3397.5,3396.1,5.8854]
[1718719215651,2.9436,3397.2,3395.6,2.837]
[1718719215852,0.70101945,3397.5,3394.9,2.8637]
[1718719215853,2.9582,3396.6,3394.9,2.8637]
[1718719216089,2.9582,3396.6,3394.3,1.21844868]
[1718719216090,2.94442,3396.3,3395.0,0.05890426]
[1718719216294,0.0736285,3396.2,3394.4,0.29659389]
[1718719216454,0.0736285,3396.2,3394.5,0.59972939]
[1718719216656,0.0736285,3396.2,3394.6,0.05890279]
[1718719216850,0.0736285,3396.2,3394.5,0.59972939]
[1718719217408,0.63276503,3396.4,3394.8,4.606]
[1718719217708,0.07362843,3396.2,3394.8,2.837]
[1718719217851,2.94464,3396.0,3394.3,7.76934732]
[1718719218051,3.01816843,3396.2,3394.4,0.05890662]
[1718719218052,0.07363327,3395.9,3394.4,0.05890662]
[1718719218274,0.07363327,3395.9,3394.5,0.78282539]
[1718719218458,0.07363327,3395.9,3394.6,0.05890526]
[1718719220692,0.07363327,3395.9,3394.7,0.05890664]
[1718719221092,0.07363327,3395.9,3394.5,0.78282539]
[1718719221258,0.07363327,3396.0,3394.6,1.769]
[1718719221465,3.0179947,3396.4,3394.8,2.837]
[1718719221803,9.12002242,3396.3,3394.4,3.0]
[1718719221955,2.94481,3395.8,3394.4,3.0]
[1718719222156,0.07363593,3395.7,3394.4,3.0]
[1718719223017,0.07363593,3395.7,3393.8,7.0923]
[1718719223018,2.94526,3395.3,3393.8,7.0923]
[1718719223178,0.36817299,3395.2,3393.8,2.9583]
[1718719223388,0.36817299,3395.2,3393.7,2.837]
[1718719223389,2.9455,3395.1,3393.7,2.837]
[1718719223595,3.01919453,3395.0,3393.8,0.05892363]
[1718719223911,0.30191945,3394.9,3393.8,0.05892363]
[1718719224067,0.07365454,3394.8,3393.8,0.05892363]
[1718719224261,0.07365454,3394.7,3393.8,0.05892363]
[1718719224870,0.07365454,3394.7,3393.7,2.837]
[1718719225191,2.94585,3394.6,3393.4,0.30009682]
[1718719225397,2.94585,3394.6,3393.1,2.837]
[1718719225398,0.07366515,3394.5,3393.2,0.05893212]
[1718719225612,0.33516316,3394.4,3393.3,0.05893211]
[1718719225809,0.07366515,3394.5,3393.3,0.05893211]
[1718719225981,0.30191945,3394.9,3393.6,2.837]
[1718719225982,0.37556716,3394.9,3393.6,2.837]
[1718719226316,0.37556716,3394.9,3393.7,0.34851176]
[1718719226472,0.37556716,3394.9,3393.8,0.05892254]
[1718719226677,0.37556716,3394.9,3393.7,0.28959182]
[1718719226678,0.30191945,3394.9,3393.7,0.28959182]
[1718719226887,0.07364795,3394.8,3393.8,0.60891836]
[1718719227097,0.07364992,3395.2,3393.8,0.60891836]
[1718719227308,0.30188999,3395.1,3393.9,0.05891993]
[1718719227468,0.07364663,3395.0,3393.8,1.22355102]
[1718719227665,0.07364663,3395.0,3393.9,0.05891959]
[1718719227881,0.07364644,3395.4,3393.9,0.05891959]
[1718719228106,0.89905264,3395.3,3394.0,3.0195]
[1718719228322,0.07364142,3395.2,3394.3,2.837]
[1718719228545,2.9719,3395.6,3394.4,0.05891312]
[1718719228546,0.0736414,3395.5,3394.4,0.05891312]
[1718719228832,0.0736414,3395.5,3394.4,3.05891312]
[1718719229220,3.102,3395.0,3393.4,2.9271]
[1718719229370,2.94579,3394.7,3393.5,3.0]
[1718719229574,0.07366156,3394.6,3393.5,3.0]
[1718719229810,3.550333,3394.9,3394.0,2.837]
[1718719229811,0.604733,3394.9,3394.0,2.837]
[1718719230120,0.07364658,3394.8,3394.0,2.837]
[1718719230328,0.07365008,3395.1,3393.5,5.837]
[1718719230552,0.07365008,3395.1,3393.6,0.05892003]
[1718719230816,0.07365008,3395.1,3393.7,1.059202]
[1718719231039,2.94551,3395.0,3393.8,0.05892002]
[1718719231327,0.07365568,3394.9,3393.8,0.05892002]
[1718719231631,3.01925568,3394.9,3393.5,5.837]
[1718719231917,0.07365568,3394.9,3393.6,0.93533567]
[1718719232489,0.07365234,3395.2,3393.6,0.93533567]
[1718719232691,0.37187757,3395.2,3393.7,1.14684357]
[1718719232917,0.37187757,3395.2,3393.8,0.05891998]
[1718719233522,0.37187757,3395.2,3393.7,1.14684357]
[1718719233733,0.37187757,3395.2,3393.5,5.837]
[1718719234031,2.94542,3395.1,3393.6,0.05892558]
[1718719234183,3.0191669,3395.0,3393.6,0.05892558]
[1718719234379,0.62627221,3394.9,3393.6,0.05892558]
[1718719234585,0.0736569,3394.8,3393.6,0.05892558]
[1718719234832,0.07365695,3394.7,3393.6,0.05892558]
[1718719235344,0.07365695,3394.7,3393.5,5.837]
[1718719235679,0.07365695,3394.7,3393.6,0.05892745]
[1718719235935,0.5964767,3394.7,3393.6,0.05892745]
[1718719236110,0.07365018,3394.7,3393.7,0.55]
[1718719236321,0.07365626,3395.1,3393.5,5.837]
[1718719236624,2.94565,3394.9,3393.5,5.837]
[1718719236782,0.67012889,3394.8,3393.5,6.71341]
[1718719236980,0.07365626,3394.7,3393.5,6.71341]
[1718719237651,0.07365626,3394.7,3393.5,5.837]
[1718719237806,0.07365626,3394.7,3393.6,0.05892501]
[1718719238346,0.07365626,3394.7,3393.0,2.837]
[1718719238347,3.01949626,3394.7,3393.0,2.837]
[1718719238654,0.59651763,3394.6,3393.1,4.90484]
[1718719238944,0.07366489,3394.5,3393.1,4.90484]
[1718719239117,0.07366489,3394.5,3393.2,0.05893191]
[1718719239320,0.37560938,3394.5,3393.3,0.0589314]
[1718719239528,2.94561,3394.9,3393.5,2.837]
[1718719239734,0.07366059,3394.8,3393.5,2.837]
[1718719239912,0.30192706,3394.7,3393.6,0.05892846]
[1718719240111,0.07365833,3394.6,3393.6,0.05892846]
[1718719241061,0.07365828,3394.7,3393.6,0.05892846]
[1718719241223,0.07365139,3395.1,3393.7,0.55]
[1718719241547,3.27722366,3395.0,3393.7,0.55]
[1718719241745,3.27722366,3395.0,3393.8,3.1712]
[1718719241746,0.07365445,3394.9,3393.8,3.1712]
[1718719241950,0.07365445,3394.9,3393.8,3.23012353]
[1718719242757,0.07365445,3394.9,3393.8,3.1712]
[1718719242914,0.33507881,3394.8,3393.8,3.1712]
[1718719243109,0.40873295,3394.8,3393.9,0.05892331]
[1718719243326,0.07365414,3394.8,3393.9,0.05892331]
[1718719243537,0.07365414,3394.8,3393.8,3.1712]
[1718719243538,0.07365145,3395.1,3393.8,3.1712]
[1718719243752,0.07365145,3395.1,3393.6,3.0]
[1718719244044,0.07365145,3395.1,3392.9,4.134]
[1718719244045,2.94612,3394.3,3392.9,4.134]
[1718719244244,0.07367241,3394.2,3392.9,4.134]
[1718719244457,0.07367241,3394.2,3393.0,3.0]
[1718719244741,0.07367241,3394.2,3393.0,4.60161]
[1718719244932,3.01988241,3394.2,3393.0,4.60161]
[1718719245305,0.07367241,3394.2,3393.0,4.60161]
[1718719245510,3.78271367,3395.0,3393.3,2.837]
[1718719245757,0.29822523,3395.2,3393.8,2.837]
[1718719245913,7.42574,3395.9,3393.8,2.837]
[1718719245914,0.07364169,3395.5,3393.9,2.37791335]
[1718719246107,0.07364169,3395.5,3394.4,3.1055]
[1718719246356,0.07363611,3395.8,3394.5,3.65315889]
[1718719246548,0.07363687,3395.7,3394.5,3.65315889]
[1718719246862,0.0736369,3395.8,3394.5,3.65315889]
[1718719247066,0.81616016,3396.3,3394.6,1.56846682]
[1718719247211,0.07362691,3396.2,3394.6,1.56846682]
[1718719247412,0.07362691,3396.2,3394.7,0.82682168]
[1718719247910,0.07362691,3396.2,3394.8,0.05890337]
[1718719248312,3.01795645,3396.4,3394.8,0.05890337]
[1718719248545,2.94439,3396.3,3394.8,0.05890337]
[1718719248747,0.66986283,3396.2,3394.9,0.23952909]
[1718719249828,2.94481,3395.8,3394.6,0.95956589]
[1718719250033,0.07363604,3395.7,3394.5,3.0]
[1718719250617,0.07363604,3395.7,3394.6,0.05890879]
[1718719250933,3.54070465,3396.2,3394.7,0.61644088]
[1718719250934,0.07363593,3395.9,3394.7,0.61644088]
[1718719251229,0.07363593,3395.9,3394.8,0.05890336]
[1718719251761,0.07363593,3395.9,3394.7,0.61644088]
[1718719251917,0.07363593,3395.9,3394.5,3.0]
[1718719252121,2.94484,3395.8,3394.5,3.0]
[1718719252366,0.073637,3395.7,3394.5,3.0]
[1718719252513,0.073637,3395.7,3394.4,3.1055]
[1718719252514,6.1713,3395.6,3394.4,0.2878514]
[1718719252740,6.1713,3395.6,3393.8,5.7925]
[1718719252741,0.69814421,3395.5,3394.0,3.0]
[1718719252932,2.94531,3395.3,3393.9,3.0]
[1718719253157,0.43799642,3395.2,3393.9,3.0]
[1718719253356,3.019001,3395.2,3393.9,3.0]
[1718719253789,0.073651,3395.2,3393.9,3.0]
[1718719253954,4.481,3396.6,3394.7,5.8106]
[1718719254140,4.481,3397.1,3395.2,4.606]
[1718719254479,3.0345,3397.4,3395.5,1.769]
[1718719254480,0.07361226,3397.0,3395.5,1.769]
[1718719254629,0.07360552,3396.9,3395.6,0.05888441]
[1718719254837,0.96573111,3397.3,3395.7,3.61714844]
[1718719255030,0.07359983,3397.2,3395.8,3.60887986]
[1718719255238,0.07359988,3397.8,3395.8,3.60887986]
[1718719255481,0.07359988,3397.7,3395.9,1.19400083]
[1718719255697,0.07359988,3397.7,3396.0,0.6088799]
[1718719255837,2.94325,3397.6,3396.0,0.55]
[1718719256179,0.07360069,3397.5,3396.0,1.56301493]
[1718719256332,0.07360069,3397.5,3396.1,0.05888055]
[1718719257941,3.01694069,3397.5,3396.0,1.01301493]
[1718719258134,6.04553,3397.3,3395.8,3.0]
[1718719258461,6.04553,3397.3,3395.4,2.9736]
[1718719258462,0.07361226,3397.2,3395.4,3.27172495]
[1718719258638,9.10482,3397.0,3395.5,3.3271725]
[1718719258982,6.04596,3396.8,3395.5,3.0]
[1718719259183,6.04596,3396.8,3394.9,5.8099]
[1718719259184,3.01773354,3396.7,3395.0,3.0]
[1718719259469,3.01773354,3396.7,3395.0,0.05889879]
[1718719259670,0.30177335,3396.6,3395.1,2.56225988]
[1718719259877,0.07361398,3396.5,3395.2,2.5609764]
[1718719260032,0.0736131,3396.9,3395.2,2.5609764]
[1718719260364,0.60763031,3396.8,3395.3,0.63155156]
[1718719260570,0.07361919,3396.7,3395.1,0.79325988]
[1718719261388,0.07361919,3396.7,3395.0,0.28825502]
[1718719261389,2.94438,3396.3,3395.0,0.28825502]
[1718719261536,2.94455,3396.1,3394.4,2.837]
[1718719261736,2.94473,3395.9,3394.4,4.39287243]
[1718719261935,0.07363812,3395.8,3394.4,1.55587243]
[1718719262171,0.07363895,3395.7,3394.4,1.55587243]
[1718719262380,2.94499,3395.6,3394.2,3.20166896]
[1718719262601,0.0736396,3395.5,3394.2,3.20166896]
[1718719262889,0.0736396,3395.5,3394.3,0.3201669]
[1718719263085,2.94394,3396.8,3394.6,2.837]
[1718719263396,3.01791244,3396.4,3394.7,1.02458751]
[1718719263542,3.01791244,3396.4,3394.8,0.05890349]
[1718719263543,0.07362244,3396.4,3394.8,0.05890349]
[1718719263740,2.94447,3396.2,3394.9,0.52149035]
[1718719263944,0.07363101,3396.1,3395.0,0.05890481]
[1718719264165,0.07363101,3396.1,3394.6,2.837]
[1718719264371,3.01819101,3396.1,3394.7,3.55]
[1718719265045,2.94481,3395.8,3394.3,0.3201669]
[1718719265275,2.94523,3395.4,3394.2,3.20166896]
[1718719265452,2.94445,3396.3,3394.2,3.20166896]
[1718719265453,0.07364719,3395.3,3394.3,0.05891775]
[1718719265775,2.94384,3397.0,3394.3,0.05891775]
[1718719265776,2.94438,3396.3,3394.3,0.05891775]
[1718719265998,3.07363793,3396.4,3394.3,0.05891775]
[1718719265999,0.0736287,3396.2,3394.6,2.837]
[1718719266160,0.0736287,3396.2,3394.7,0.0589033]
[1718719266357,0.82464587,3396.2,3394.8,0.28959033]
[1718719266540,0.82464587,3396.2,3394.9,0.05890296]
[1718719266746,2.94464,3396.0,3394.6,2.837]
[1718719267051,0.67137459,3395.9,3394.7,3.6089061]
[1718719267388,0.07363263,3395.9,3394.7,3.55]
[1718719267591,0.07362771,3396.1,3394.7,3.55]
[1718719268147,2.94497,3395.7,3394.7,3.0]
[1718719268376,2.94533,3395.2,3394.1,0.60922434]
[1718719268649,2.94533,3395.2,3393.8,7.43]
[1718719268650,0.07365348,3395.1,3393.8,7.72737]
[1718719268840,0.07365348,3395.1,3393.9,0.05892278]
[1718719269063,3.01907348,3395.1,3393.9,0.05892278]
[1718719269282,0.07365348,3395.1,3393.9,0.05892278]
[1718719269780,3.01914348,3395.1,3393.9,0.05892278]
[1718719270000,0.59644835,3395.0,3393.9,0.05892278]
[1718719270196,0.07365303,3394.9,3393.9,0.05892278]
[1718719270486,0.07365303,3394.9,3393.8,3.29737]
[1718719270789,0.07365303,3394.9,3393.8,3.0]
[1718719271082,0.3019173,3394.8,3393.8,3.0]
[1718719271288,0.0736535,3394.7,3393.8,3.0]
[1718719271444,2.94559,3394.9,3393.8,3.0]
[1718719271644,2.94559,3394.9,3393.6,2.837]
[1718719271645,3.608509,3394.8,3393.7,3.0]
[1718719271881,0.073658,3394.8,3393.7,3.0]
[1718719272555,2.94541,3395.2,3393.7,3.0]
[1718719272756,0.07366038,3395.1,3393.7,3.0]
[1718719272955,2.94577,3394.7,3393.7,3.0]
[1718719273153,0.07366035,3394.6,3393.7,3.0]
[1718719273690,2.94595,3394.5,3393.7,3.0]
[1718719273893,2.94595,3394.5,3393.6,2.837]
[1718719273894,3.01975301,3394.4,3393.6,2.837]
[1718719274100,3.01975301,3394.4,3393.4,0.29560757]
[1718719274101,2.94637,3394.0,3393.4,0.29560757]
[1718719274387,2.94662,3393.8,3392.5,7.43]
[1718719274550,2.94662,3393.8,3392.6,3.0]
[1718719274551,0.0736799,3393.7,3392.6,3.0]
[1718719274746,3.24874999,3393.6,3392.4,3.0]
[1718719274970,3.24874999,3393.6,3392.3,3.0]
[1718719274971,0.07368726,3393.5,3392.3,3.0]
[1718719275145,0.40591999,3393.5,3392.4,0.63313995]
[1718719275344,0.40591999,3393.5,3392.5,0.05894563]
[1718719275954,0.07368726,3393.5,3392.5,0.05894563]
[1718719276351,3.02049726,3393.5,3392.3,3.0]
[1718719277147,0.07368726,3393.5,3392.4,0.05894791]
[1718719277395,0.07368185,3393.6,3392.5,2.837]
[1718719277612,10.52911,3394.4,3392.5,2.837]
[1718719277613,2.94649,3393.9,3392.6,3.05894357]
[1718719277899,0.07367947,3393.8,3392.7,0.05894357]
[1718719278104,0.07367947,3393.8,3392.6,3.0]
[1718719278105,2.94675,3393.6,3392.6,3.0]
[1718719278249,2.94692,3393.4,3392.2,0.28869948]
[1718719278447,0.07368772,3393.3,3392.1,3.0]
[1718719278684,0.07368772,3393.2,3392.0,2.837]
[1718719279020,0.07368772,3393.2,3391.7,2.9322]
[1718719279021,2.94716,3393.1,3391.7,2.9322]
[1718719279166,0.07369904,3393.0,3391.8,0.29244985]
[1718719279485,0.07369904,3393.0,3391.6,0.05896271]
[1718719279486,3.7142819,3392.9,3391.6,0.05896271]
[1718719279686,2.94779,3392.4,3391.1,7.2974]
[1718719279911,2.94759,3392.6,3391.0,4.018107]
[1718719279912,0.07371661,3392.3,3391.0,2.837]
[1718719280051,0.07371661,3392.3,3391.1,0.34267328]
[1718719280052,0.0737166,3392.2,3391.1,0.34267328]
[1718719280458,0.0737166,3392.2,3391.1,0.2837]
[1718719280459,2.94811,3392.0,3391.1,0.2837]
[1718719280654,3.0761,3392.8,3391.1,0.34267332]
[1718719281007,0.07370793,3392.7,3391.3,3.0384]
[1718719281292,0.07370793,3392.7,3391.4,0.05896183]
[1718719281513,0.07370228,3392.9,3391.5,2.837]
[1718719281655,0.07369722,3393.1,3392.0,2.837]
[1718719281859,0.30204295,3393.5,3392.2,3.1494]
[1718719282156,0.07367795,3393.6,3392.5,2.837]
[1718719282360,0.07367574,3393.9,3392.6,0.05894059]
[1718719282563,1.8073341,3394.2,3393.1,3.1494]
[1718719282868,4.481,3395.0,3393.2,3.0]
[1718719283065,3.039,3395.1,3393.2,3.0]
[1718719283066,0.07365642,3394.9,3393.2,3.0]
[1718719283277,0.07365642,3394.9,3393.5,2.837]
[1718719283278,0.38492206,3394.9,3393.5,2.837]
[1718719283464,0.31126564,3394.9,3393.6,3.55]
[1718719283663,5.97029,3395.6,3393.6,3.55]
[1718719284219,3.0253,3395.6,3393.6,5.319]
[1718719284377,2.94517,3395.4,3393.7,0.8156]
[1718719284695,1.06083,3395.5,3393.8,0.55]
[1718719284856,1.06083,3395.5,3394.0,2.837]
[1718719285057,2.94455,3396.1,3394.5,2.837]
[1718719285058,2.9661,3396.1,3394.5,2.837]
[1718719285255,4.481,3396.3,3394.6,5.37790168]
[1718719285256,0.0736271,3396.0,3394.6,5.37790168]
[1718719285514,0.52172343,3396.2,3394.7,0.82149017]
[1718719285813,0.52172343,3396.2,3394.8,0.55]
[1718719285971,0.52172343,3396.2,3394.7,0.82149017]
[1718719286298,0.52172343,3396.2,3394.8,0.49605211]
[1718719286299,0.34660934,3396.1,3394.8,0.49605211]
[1718719286507,0.07362345,3396.0,3394.8,0.43714902]
[1718719286665,2.94447,3396.2,3394.8,0.43714902]
[1718719287020,2.94481,3395.8,3394.4,3.0]
[1718719287162,5.99821,3395.6,3394.2,3.0]
[1718719287521,2.94516,3395.4,3394.2,3.0]
[1718719287806,2.9973,3396.1,3394.3,0.05891892]
[1718719287988,2.9973,3396.1,3394.0,4.71537]
[1718719287989,0.36808992,3396.0,3394.0,4.71537]
[1718719288193,0.07363492,3396.0,3394.4,1.769]
[1718719288499,0.07362346,3396.5,3394.6,4.9413]
[1718719288796,0.07362346,3396.5,3394.7,0.60889873]
[1718719289019,0.07362346,3396.5,3394.8,0.05889874]
[1718719289156,3.60488835,3396.4,3394.9,1.10501987]
[1718719289361,3.60488835,3396.4,3394.7,3.55]
[1718719289362,2.94464,3396.0,3394.7,3.0]
[1718719289568,0.07363179,3395.9,3394.7,3.0]
[1718719289804,3.01836179,3395.9,3394.7,3.0]
[1718719289987,0.59630018,3395.8,3394.7,3.0]
[1718719290301,2.94529,3395.3,3393.9,3.0507]
[1718719290507,0.07364586,3395.2,3393.9,3.0507]
[1718719290660,3.07364086,3396.0,3394.0,0.44554668]
[1718719290861,0.07364086,3396.0,3394.0,3.39191668]
[1718719291161,0.07364086,3396.0,3394.2,2.94615]
[1718719291503,0.07362437,3396.5,3394.4,1.769]
[1718719291665,6.01782437,3396.5,3394.4,1.769]
[1718719291860,2.9443,3396.4,3394.6,1.769]
[1718719292066,2.9443,3396.4,3394.5,0.55]
[1718719292067,4.02893125,3396.3,3394.5,0.55]
[1718719292399,6.97332125,3396.3,3394.5,0.55]
[1718719292603,6.97332125,3396.3,3394.6,0.05890647]
[1718719292758,6.97332125,3396.3,3394.3,0.55]
[1718719292759,2.94472,3395.9,3394.3,0.55]
[1718719292960,0.07363402,3395.8,3394.3,0.55]
[1718719293222,0.07363423,3395.7,3394.1,3.0]
[1718719293386,0.07363423,3395.7,3394.0,3.38663]
[1718719293562,0.07363423,3395.7,3394.1,3.343733]
[1718719293563,2.94507,3395.6,3394.1,3.343733]
[1718719293762,0.07364287,3395.5,3394.1,3.343733]
[1718719293983,1.43800272,3396.0,3394.2,0.73702059]
[1718719294216,0.07364286,3396.0,3394.2,3.73702059]
[1718719294639,3.01828286,3396.0,3394.3,0.55]
[1718719294943,3.01828286,3396.0,3394.4,0.69888392]
[1718719294944,1.05538736,3396.0,3394.4,0.69888392]
[1718719296414,4.00003736,3396.0,3394.4,0.69888392]
[1718719296628,2.94491,3395.7,3394.3,0.55]
[1718719296812,2.94532,3395.3,3394.0,3.29441593]
[1718719297152,0.0736443,3395.6,3394.0,0.29441593]
[1718719297153,0.07364705,3395.2,3394.0,0.29441593]
[1718719297518,3.01899705,3395.2,3393.9,3.0507]
[1718719298114,2.94542,3395.1,3393.9,3.0507]
[1718719298462,2.94578,3394.7,3393.3,2.994]
[1718719298670,0.07365839,3394.6,3393.3,2.994]
[1718719298940,2.94603,3394.4,3392.8,2.9187]
[1718719299117,2.9462,3394.2,3392.8,3.71898]
[1718719299316,0.0736701,3394.1,3392.8,3.71898]
[1718719299505,0.0736701,3394.1,3392.9,0.4009266]
[1718719299710,0.0736701,3394.1,3392.8,3.71898]
[1718719299711,3.0199601,3394.1,3392.8,3.71898]
[1718719299907,3.0199601,3394.1,3392.7,0.29028596]
[1718719300139,3.0199601,3394.1,3392.3,3.0487]
[1718719300140,2.94655,3393.8,3392.3,3.0487]
[1718719300328,0.07368357,3393.7,3392.3,3.0487]
[1718719300612,0.30202336,3393.6,3392.3,3.35357]
[1718719300815,0.07368385,3393.5,3392.3,3.35357]
[1718719301452,3.02051385,3393.5,3392.3,3.35357]
[1718719301610,3.02051385,3393.5,3391.8,4.134]
[1718719301611,2.9469,3393.4,3391.8,2.8817]
[1718719301807,0.07369254,3393.3,3391.8,2.8817]
[1718719302015,0.07369249,3393.2,3391.8,2.8817]
[1718719302348,0.07369249,3393.2,3391.9,0.28817]
[1718719302349,0.30206925,3393.1,3391.9,0.28817]
[1718719302643,0.07369472,3393.0,3391.9,0.28817]
[1718719303110,0.07369472,3393.0,3392.0,0.05895573]
[1718719303306,2.9469,3393.4,3392.0,0.05895573]
[1718719303511,3.02069465,3393.3,3392.0,0.05895573]
[1718719303811,0.07369463,3393.2,3392.0,0.3818383]
[1718719304012,0.07369463,3393.2,3392.0,0.32288257]
[1718719304312,3.02078463,3393.2,3392.0,0.32288257]
[1718719304558,0.66101224,3393.1,3392.0,0.32288257]
[1718719304712,0.07369466,3393.0,3392.0,0.32288257]
[1718719306451,0.07369466,3393.0,3391.9,3.0]
[1718719306952,0.07369466,3393.0,3391.8,2.8817]
[1718719306953,0.07369466,3393.0,3391.3,3.0452]
[1718719307136,3.0865,3392.9,3391.4,0.05896987]
[1718719307345,6.12293466,3393.0,3391.4,0.05896987]
[1718719307346,0.07370476,3392.8,3391.4,0.05896987]
[1718719307539,0.07370476,3392.8,3391.3,3.0452]
[1718719307540,0.07370293,3392.7,3391.5,0.33963162]
[1718719308071,0.07370293,3392.7,3391.6,0.05896234]
[1718719309454,0.07370293,3392.7,3391.5,0.33963162]
[1718719309779,0.07370293,3392.7,3391.6,0.05896236]
[1718719309973,4.5237,3399.2,3391.7,0.3398594]
[1718719309974,3.24880336,3393.6,3391.7,0.3398594]
[1718719310192,0.07369461,3393.3,3391.8,0.05895568]
[1718719310351,0.07369461,3393.3,3391.9,3.696]
[1718719310663,0.07369461,3393.3,3392.0,3.05894947]
[1718719310868,0.07369461,3393.3,3392.1,0.67549495]
[1718719311071,0.07368684,3393.4,3392.2,0.05894947]
[1718719311277,2.94699,3393.3,3392.1,0.67549495]
[1718719311479,0.37575733,3393.2,3392.1,0.67549495]
[1718719311675,3.32285733,3393.2,3392.0,3.0]
[1718719311882,2.94716,3393.1,3392.0,3.0]
[1718719312090,0.07369473,3393.0,3392.0,3.0]
[1718719312761,0.07369473,3393.0,3391.4,3.161]
[1718719312762,3.02094473,3393.0,3391.4,3.161]
[1718719312956,0.33230124,3392.9,3391.4,3.161]
[1718719313190,0.07369953,3392.8,3391.4,3.161]
[1718719313390,0.07369953,3392.8,3391.5,0.2948]
[1718719313552,0.07369953,3392.8,3391.7,0.2948]
[1718719314694,0.07369953,3392.8,3391.6,0.2948]
[1718719314901,0.07369953,3392.8,3391.7,0.94038]
[1718719314902,0.40903161,3392.8,3391.7,0.94038]
[1718719315473,0.40903161,3392.8,3391.7,0.2948]
[1718719315474,2.94757,3392.7,3391.7,0.2948]
[1718719315693,0.07370348,3392.6,3391.7,0.2948]
[1718719315996,3.02130348,3392.6,3391.7,0.2948]
[1718719316306,3.24981035,3392.5,3391.7,0.2948]
[1718719316503,0.07371008,3392.4,3391.7,0.2948]
[1718719316916,0.07371008,3392.4,3391.5,0.2948]
[1718719317121,0.0737007,3392.6,3391.5,3.35376804]
[1718719317330,3.24506768,3393.2,3391.7,0.2948]
[1718719317331,2.94734,3392.9,3391.7,0.2948]
[1718719317629,3.02112169,3392.8,3391.7,0.2948]
[1718719318115,0.07370169,3392.8,3391.7,0.2948]
[1718719318331,2.94727,3393.0,3391.8,0.33537614]
[1718719318621,2.94744,3392.8,3391.5,3.0]
[1718719318783,0.07370191,3392.7,3391.5,3.0]
[1718719319230,0.07370191,3392.7,3391.6,0.05896153]
[1718719319438,4.481,3393.9,3392.3,2.9613]
[1718719319739,4.481,3393.9,3392.4,3.55]
[1718719319740,0.07367688,3393.8,3392.4,3.55]
[1718719320598,2.94646,3393.9,3392.4,3.55]